fUST/lending_fUST_20250621
["ID","MTS","AMOUNT","RATE_DAILY","PERIOD"]
[366787018,1750453837662,-474.72951429,0.00023835,2]
[366787019,1750453837672,-460.0,0.00023835,2]
[366787020,1750453837682,-460.0,0.00023835,2]
[366787021,1750453837692,-599.11,0.00023835,2]
[366787022,1750453837702,-460.0,0.00023835,2]
[366787023,1750453837712,-460.0,0.00023835,2]
[366787024,1750453837721,-460.0,0.00023835,2]
[366787025,1750453837731,-460.0,0.00023835,2]
[366787026,1750453837740,-231.04716979,0.00023866,2]
[366787027,1750453837750,-5983.63646566,0.00023873,2]
[366787028,1750453837760,-1619.404071,0.0002388,5]
[366787029,1750453837769,-500.0,0.00023883,2]
[366787030,1750453837779,-1034.0,0.000239,2]
[366787031,1750453837789,-1034.0,0.000239,2]
[366787032,1750453837798,-1034.0,0.000239,2]
[366787033,1750453837808,-1034.0,0.000239,2]
[366787034,1750453837818,-1034.0,0.000239,2]
[366787035,1750453837830,-1034.0,0.000239,2]
[366787036,1750453837840,-1034.0,0.000239,2]
[366787037,1750453837849,-1034.0,0.000239,2]
[366787038,1750453837859,-1034.0,0.000239,2]
[366787039,1750453837869,-1034.0,0.000239,2]
[366787040,1750453837879,-1275.88,0.000239,7]
[366787041,1750453837888,-213.036528,0.000239,7]
[366787042,1750453837898,-151.0,0.000239,5]
[366787043,1750453837908,-151.0,0.000239,7]
[366787044,1750453837918,-151.0,0.000239,7]
[366787045,1750453837928,-151.0,0.000239,7]
[366787046,1750453837938,-151.0,0.000239,7]
[366787047,1750453837948,-1000.0,0.000239,5]
[366787048,1750453837958,-151.0,0.000239,7]
[366787049,1750453837967,-151.0,0.000239,7]
[366787051,1750453837977,-168.17519988,0.000239,2]
[366787052,1750453837987,-151.0,0.000239,7]
[366787053,1750453837996,-151.0,0.000239,7]
[366787055,1750453838006,-657.22179545,0.000239,2]
[366787056,1750453838016,-6742.54634724,0.000239,2]
[366787057,1750453838025,-500.0,0.00023908,2]
[366787058,1750453838035,-151.0,0.0002392,7]
[366787059,1750453838044,-151.0,0.0002392,7]
[366787060,1750453838054,-1000.0,0.0002392,5]
[366787061,1750453838063,-151.0,0.0002392,7]
[366787062,1750453838073,-247.583404,0.0002392,7]
[366787063,1750453838083,-151.0,0.0002392,7]
[366787064,1750453838092,-151.0,0.0002392,7]
[366787065,1750453838102,-500.0,0.00023926,2]
[366787066,1750453838111,-5725.19446053,0.00023929,2]
[366787067,1750453838121,-1000.0,0.0002394,5]
[366787069,1750453838131,-1000.0,0.0002396,5]
[366787071,1750453838140,-151.0,0.00023971,7]
[366787073,1750453838150,-500.0,0.00023973,2]
[366787074,1750453838159,-500.0,0.00023973,2]
[366787076,1750453838170,-500.0,0.00023973,2]
[366787077,1750453838179,-501.1678591,0.00023973,2]
[366787078,1750453838189,-503.20309577,0.00023973,2]
[366787079,1750453838198,-500.0,0.00023973,2]
[366787080,1750453838207,-500.0,0.00023973,2]
[366787081,1750453838216,-184.66185535,0.00023973,2]
[366787082,1750453838226,-500.0,0.00023973,2]
[366787083,1750453838236,-500.0,0.00023973,2]
[366787085,1750453838245,-500.0,0.00023973,2]
[366787087,1750453838255,-500.0,0.00023973,2]
[366787089,1750453838264,-500.0,0.00023973,2]
[366787091,1750453838274,-258.8294469,0.00023973,2]
[366787093,1750453838283,-500.0,0.00023973,2]
[366787095,1750453838293,-500.0,0.00023973,2]
[366787097,1750453838303,-500.0,0.00023973,2]
[366787099,1750453838312,-500.0,0.00023973,2]
[366787101,1750453838322,-151.0,0.00023973,7]
[366787103,1750453838331,-154.571329,0.00023973,7]
[366787105,1750453838340,-151.0,0.00023973,7]
[366787107,1750453838349,-239.261586,0.00023973,7]
[366787109,1750453838358,-239.261586,0.00023973,7]
[366787111,1750453838369,-151.0,0.00023973,7]
[366787113,1750453838378,-151.0,0.00023973,7]
[366787115,1750453838388,-151.0,0.00023973,7]
[366787117,1750453838398,-500.0,0.00023974,2]
[366787119,1750453838408,-1000.0,0.0002398,5]
[366787121,1750453838419,-151.0,0.0002399,7]
[366787123,1750453838428,-151.0,0.0002399,7]
[366787125,1750453838437,-151.0,0.0002399,7]
[366787127,1750453838448,-151.0,0.0002399,7]
[366787129,1750453838457,-151.0,0.0002399,7]
[366787131,1750453838467,-151.0,0.0002399,7]
[366787133,1750453838476,-151.0,0.0002399,7]
[366787135,1750453838486,-151.0,0.0002399,7]
[366787137,1750453838496,-151.0,0.0002399,7]
[366787139,1750453838505,-151.0,0.0002399,7]
[366787141,1750453838515,-262069.50496075,0.00024,2]
[366787144,1750453838525,-20195.0978,0.00024,30]
[366787147,1750453838535,-56626.0,0.00024,2]
[366787150,1750453838544,-131889.10987696,0.00024,2]
[366787153,1750453838554,-30127.0,0.00024,2]
[366787156,1750453838564,-152.37100485,0.00024,2]
[366787159,1750453838573,-10040.66712387,0.00024,2]
[366787162,1750453838583,-158.0,0.00024,2]
[366787165,1750453838593,-160.0,0.00024,7]
[366787168,1750453838606,-160.0,0.00024,7]
[366787170,1750453838616,-160.0,0.00024,7]
[366787172,1750453838627,-12078.73230747,0.00024,30]
[366787174,1750453838637,-30684.31202524,0.00024,2]
[366787176,1750453838651,-14641.3183187,0.00024,2]
[366787348,1750453840606,-203.40023779,0.00021071,2]
[366787350,1750453840617,-500.0,0.00021071,2]
[366787352,1750453840627,-500.0,0.00021071,2]
[366787354,1750453840636,-500.0,0.00021071,2]
[366787356,1750453840647,-500.0,0.00021071,2]
[366787358,1750453840656,-500.0,0.00021071,2]
[366787359,1750453840666,-500.0,0.00021071,2]
[366787361,1750453840677,-500.0,0.00021071,2]
[366787363,1750453840687,-500.0,0.00021071,2]
[366787365,1750453840697,-500.0,0.00021071,2]
[366787367,1750453840707,-500.0,0.00021071,2]
[366787369,1750453840717,-96.59296238,0.00022772,3]
[366787444,1750453843712,-220.40703762,0.00022772,3]
[366787445,1750453843722,-294.46,0.0002399,10]
[366787446,1750453843732,-118140.41589442,0.00024,2]
[366787466,1750453846540,-460.0,0.00021917,2]
[366787467,1750453846550,-460.0,0.00022191,2]
[366787468,1750453846560,-460.0,0.00022465,2]
[366787469,1750453846570,-460.0,0.00022739,2]
[366787470,1750453846580,-460.0,0.00023013,2]
[366787471,1750453846590,-460.0,0.00023287,2]
[366787472,1750453846600,-460.0,0.00023561,2]
[366787473,1750453846612,-460.0,0.00023835,2]
[366787474,1750453846623,-429.55095857,0.00024,2]
[366787480,1750454365090,221.087437,0.00013699,2]
[366787489,1750454825509,-964.0,0.000201,2]
[366787495,1750454862412,219.07393182,0.000189,2]
[366787500,1750454897452,150.0,0.000189,2]
[366787562,1750455032616,-160.35931239,0.00019999,2]
[366787563,1750455032626,-300.0,0.00019999,2]
[366787565,1750455032636,-1200.0,0.00019999,2]
[366787567,1750455032646,-96.71662959,0.0002,2]
[366787569,1750455032657,-3659.19530598,0.0002,2]
[366787574,1750455032784,-210.69055412,0.00019999,2]
[366787575,1750455032794,-684.35668324,0.0002,2]
[366787576,1750455032806,-58778.52911484,0.0002,2]
[366787577,1750455032818,-1960.05600806,0.0002,2]
[366787594,1750455038792,-500.0,0.00019999,2]
[366787595,1750455038809,-500.0,0.00019999,2]
[366787596,1750455038823,-500.0,0.00019999,2]
[366787597,1750455038841,-500.0,0.00019999,2]
[366787598,1750455038854,-99.0984584,0.00019999,2]
[366787599,1750455038897,-241.64094322,0.00019999,2]
[366787600,1750455038911,-268.8338297,0.00019999,2]
[366787602,1750455038924,-500.0,0.00019999,2]
[366787603,1750455038940,-500.0,0.00019999,2]
[366787604,1750455038953,-651.05043173,0.00019999,2]
[366787605,1750455038968,-500.0,0.00019999,2]
[366787606,1750455038981,-193.5214479,0.00019999,2]
[366787607,1750455038992,-526.5007963,0.00019999,2]
[366787608,1750455039004,-500.0,0.00019999,2]
[366787609,1750455039016,-500.0,0.00019999,2]
[366787610,1750455039028,-500.0,0.00019999,2]
[366787611,1750455039038,-500.0,0.00019999,2]
[366787612,1750455039049,-500.0,0.00019999,2]
[366787613,1750455039060,-685558.40530077,0.0002,2]
[366787614,1750455039073,-426.78634933,0.0002,2]
[366787615,1750455039086,-4000.0,0.0002,4]
[366787616,1750455039097,-3108.0,0.000201,2]
[366787617,1750455039108,-169.74742,0.00020143,2]
[366787618,1750455039121,-221.087437,0.00020187,2]
[366787619,1750455039132,-2938.1870257,0.00020296,2]
[366787620,1750455039145,-399.2539178,0.00020358,2]
[366787621,1750455039157,-631.5626314,0.000209,4]
[366787622,1750455039169,-67872.74,0.000209,2]
[366787623,1750455039182,-160.0,0.00021059,2]
[366787624,1750455039194,-836.27303475,0.00021059,2]
[366787625,1750455039206,-230.06456406,0.00021059,2]
[366787626,1750455039220,-160.0,0.00021059,2]
[366787627,1750455039233,-424.85694595,0.00021059,2]
[366787628,1750455039245,-300.0,0.00021061,2]
[366787629,1750455039258,-631.56263118,0.00021072,4]
[366787630,1750455039272,-1229.55,0.000211,2]
[366787631,1750455039285,-3449.96,0.000211,2]
[366787632,1750455039299,-631.56263118,0.00021245,4]
[366787633,1750455039311,-156.527,0.00021374,2]
[366787634,1750455039322,-631.56263118,0.00021417,5]
[366787635,1750455039333,-631.56263118,0.0002159,5]
[366787636,1750455039343,-1688.0,0.00021606,2]
[366787637,1750455039353,-5000.0,0.00021606,2]
[366787638,1750455039364,-1483.88359541,0.00021606,2]
[366787639,1750455039374,-500.0,0.00021606,2]
[366787640,1750455039393,-500.0,0.00021606,2]
[366787641,1750455039405,-500.0,0.00021606,2]
[366787642,1750455039418,-500.0,0.00021606,2]
[366787643,1750455039431,-500.0,0.00021606,2]
[366787645,1750455039445,-500.0,0.00021606,2]
[366787647,1750455039457,-500.0,0.00021606,2]
[366787648,1750455039470,-500.0,0.00021606,2]
[366787649,1750455039482,-500.0,0.00021606,2]
[366787650,1750455039493,-500.0,0.00021606,2]
[366787651,1750455039503,-500.0,0.00021606,2]
[366787652,1750455039514,-500.0,0.00021606,2]
[366787653,1750455039525,-500.0,0.00021606,2]
[366787654,1750455039536,-500.0,0.00021606,2]
[366787655,1750455039548,-207.4,0.00021606,2]
[366787656,1750455039560,-500.0,0.00021606,2]
[366787657,1750455039571,-500.0,0.00021606,2]
[366787658,1750455039583,-500.0,0.00021606,2]
[366787659,1750455039596,-500.0,0.00021606,2]
[366787660,1750455039607,-500.0,0.00021606,2]
[366787661,1750455039618,-500.0,0.00021606,2]
[366787662,1750455039628,-500.0,0.00021606,2]
[366787663,1750455039639,-500.0,0.00021606,2]
[366787664,1750455039649,-500.0,0.00021606,2]
[366787665,1750455039659,-500.0,0.00021606,2]
[366787666,1750455039670,-500.0,0.00021606,2]
[366787667,1750455039683,-500.0,0.00021606,2]
[366787668,1750455039693,-500.0,0.00021606,2]
[366787669,1750455039704,-500.0,0.00021606,2]
[366787670,1750455039715,-500.0,0.00021606,2]
[366787671,1750455039726,-500.0,0.00021606,2]
[366787672,1750455039737,-24900.0,0.00021619,2]
[366787673,1750455039748,-176.93654487,0.00021661,2]
[366787674,1750455039762,-631.56263118,0.00021762,5]
[366787675,1750455039773,-420.0,0.00021777,2]
[366787676,1750455039785,-666.0,0.00021792,2]
[366787677,1750455039797,-215.05,0.000219,2]
[366787678,1750455039809,-460.0,0.00021917,2]
[366787679,1750455039821,-460.0,0.00021917,2]
[366787680,1750455039833,-408.216974,0.00021917,2]
[366787681,1750455039844,-460.0,0.00021917,2]
[366787682,1750455039856,-460.0,0.00021917,2]
[366787683,1750455039868,-631.56263118,0.00021934,6]
[366787684,1750455039880,-631.56263118,0.00022107,6]
[366787685,1750455039892,-460.0,0.00022191,2]
[366787686,1750455039904,-460.0,0.00022191,2]
[366787687,1750455039916,-460.0,0.00022191,2]
[366787688,1750455039928,-460.0,0.00022191,2]
[366787689,1750455039939,-631.56263118,0.00022279,6]
[366787690,1750455039950,-223.251477,0.00022282,2]
[366787691,1750455039961,-631.56263118,0.00022452,7]
[366787692,1750455039973,-460.0,0.00022465,2]
[366787693,1750455039987,-460.0,0.00022465,2]
[366787694,1750455039999,-460.0,0.00022465,2]
[366787695,1750455040010,-460.0,0.00022465,2]
[366787696,1750455040022,-67872.74,0.000225,2]
[366787697,1750455040033,-631.56263118,0.00022624,7]
[366787698,1750455040046,-460.0,0.00022739,2]
[366787699,1750455040058,-460.0,0.00022739,2]
[366787700,1750455040069,-460.0,0.00022739,2]
[366787701,1750455040081,-467.14219802,0.00022739,2]
[366787706,1750455040258,-406.0,0.00022745,2]
[366787707,1750455040269,-631.56263118,0.00022797,7]
[366787708,1750455040279,-420.0,0.00022909,2]
[366787709,1750455040288,-631.56263118,0.00022969,8]
[366787710,1750455040298,-215.0738,0.00022975,2]
[366787711,1750455040308,-151.0,0.0002299,7]
[366787712,1750455040318,-162.134399,0.0002299,7]
[366787713,1750455040328,-151.0,0.0002299,7]
[366787714,1750455040338,-151.0,0.0002299,7]
[366787715,1750455040348,-151.0,0.00023013,7]
[366787716,1750455040358,-460.0,0.00023013,2]
[366787717,1750455040368,-460.0,0.00023013,2]
[366787718,1750455040378,-460.0,0.00023013,2]
[366787719,1750455040388,-631.56263118,0.00023141,8]
[366787720,1750455040398,-500.0,0.00023166,2]
[366787721,1750455040407,-500.0,0.00023185,2]
[366787722,1750455040417,-4579.35,0.00023188,2]
[366787723,1750455040426,-460.0,0.00023222,2]
[366787724,1750455040436,-252.32943395,0.00023287,2]
[366787725,1750455040446,-460.0,0.00023287,2]
[366787726,1750455040455,-460.0,0.00023287,2]
[366787728,1750455040466,-1229.55,0.000233,7]
[366787729,1750455040476,-3449.96,0.000233,7]
[366787730,1750455040486,-631.56263118,0.00023314,9]
[366787731,1750455040496,-4000.0,0.00023333,4]
[366787732,1750455040505,-500.0,0.00023386,2]
[366787733,1750455040515,-158.9908236,0.00023397,2]
[366787734,1750455040525,-306.0,0.00023397,2]
[366787735,1750455040535,-346.9248725,0.00023397,2]
[366787736,1750455040544,-574.2153043,0.00023397,2]
[366787738,1750455040554,-354.3008366,0.00023397,2]
[366787740,1750455040563,-317.9816472,0.00023397,2]
[366787741,1750455040573,-151.0,0.0002348,7]
[366787742,1750455040583,-151.0,0.0002348,7]
[366787743,1750455040593,-280.628897,0.0002348,7]
[366787744,1750455040604,-631.56263118,0.00023486,9]
[366787745,1750455040615,-460.0,0.00023496,2]
[366787746,1750455040625,-499.79,0.00023519,2]
[366787747,1750455040635,-1098.824182,0.0002352,4]
[366787748,1750455040644,-500.0,0.00023542,2]
[366787749,1750455040655,-460.0,0.00023561,2]
[366787750,1750455040665,-528.92362381,0.00023561,2]
[366787752,1750455040674,-250.0,0.00023658,2]
[366787754,1750455040685,-631.56263118,0.00023659,9]
[366787756,1750455040694,-151.0,0.00023687,7]
[366787758,1750455040704,-151.0,0.00023687,7]
[366787759,1750455040714,-500.0,0.00023691,2]
[366787760,1750455040724,-151.0,0.000237,7]
[366787761,1750455040734,-151.0,0.000237,7]
[366787762,1750455040744,-500.0,0.00023711,2]
[366787763,1750455040755,-587.0,0.00023712,2]
[366787764,1750455040764,-460.0,0.0002377,2]
[366787765,1750455040774,-499.79,0.00023793,2]
[366787766,1750455040784,-631.56263118,0.00023831,10]
[366787767,1750455040794,-460.0,0.00023835,2]
[366787768,1750455040803,-500.0,0.00023852,2]
[366787769,1750455040814,-500.0,0.00023884,2]
[366787770,1750455040823,-151.0,0.000239,7]
[366787771,1750455040844,-150.0,0.000239,2]
[366787774,1750455040856,-6068.29171257,0.000239,2]
[366787776,1750455040866,-67872.74,0.000239,2]
[366787778,1750455040877,-500.0,0.00023902,2]
[366787781,1750455040887,-500.0,0.00023962,2]
[366787783,1750455040897,-500.0,0.00023971,2]
[366787784,1750455040907,-500.0,0.00023973,2]
[366787785,1750455040918,-500.0,0.00023973,2]
[366787786,1750455040928,-502.00418088,0.00023973,2]
[366787788,1750455040938,-509.41600529,0.00023973,2]
[366787790,1750455040948,-500.0,0.00023973,2]
[366787791,1750455040959,-500.0,0.00023973,2]
[366787792,1750455040969,-216.68502519,0.00023973,2]
[366787793,1750455040979,-204.37613019,0.00023973,2]
[366787794,1750455040988,-500.0,0.00023973,2]
[366787795,1750455040998,-500.0,0.00023973,2]
[366787796,1750455041008,-500.0,0.00023973,2]
[366787797,1750455041018,-500.0,0.00023984,2]
[366787798,1750455041028,-160.0,0.00023999,2]
[366787799,1750455041038,-1563.434122,0.00024,2]
[366787800,1750455041048,-632.45498733,0.00024,2]
[366787801,1750455041057,-1035.3114026,0.00024,2]
[366787802,1750455041067,-197440.11661064,0.00024,2]
[366788506,1750455481215,224.342958,0.00013699,2]
[366788510,1750455827287,299.0,0.00018945,2]
[366788511,1750455828535,-163.45706847,0.00019366,2]
[366788513,1750455856170,-160.48223308,0.00019143,2]
[366788515,1750455894462,-155.0,0.00019134,2]
[366788516,1750455973502,311.21258996,0.000246,120]
[366788523,1750456209568,-45.0,0.00019134,2]
[366788524,1750456209592,-39.51776692,0.00019143,2]
[366788525,1750456209615,-152.17221505,0.00019251,2]
[366788558,1750456231927,-667.87843995,0.00019251,2]
[366788560,1750456231937,-1424.00992593,0.00019366,2]
[366788562,1750456231947,-170.689032,0.00019864,2]
[366788564,1750456231957,-5000.0,0.00020037,2]
[366788566,1750456231967,-600.0,0.00020164,2]
[366788568,1750456231976,-224.342958,0.00020187,2]
[366788570,1750456231985,-300.0,0.00020427,2]
[366788572,1750456231995,-1200.0,0.00020427,2]
[366788574,1750456232004,-500.0,0.00020428,2]
[366788576,1750456232017,-500.19455197,0.00020428,2]
[366788578,1750456232027,-500.0,0.00020428,2]
[366788580,1750456232036,-3377.3241703,0.00020429,2]
[366788581,1750456232046,-22284.44278732,0.00020472,2]
[366788584,1750456232059,-2615.55721268,0.00020472,2]
[366788586,1750456232068,-666.0,0.00020526,2]
[366788588,1750456232078,-186.035,0.00020537,2]
[366788590,1750456232087,-500.0,0.00020548,2]
[366788592,1750456232097,-251.74445988,0.00020548,2]
[366788594,1750456232107,-223.54455735,0.000208,2]
[366788596,1750456232116,-223.54455734,0.000208,2]
[366788598,1750456232126,-223.54455734,0.000208,2]
[366788600,1750456232136,-160.0,0.00020872,2]
[366788601,1750456232145,-160.0,0.00020872,2]
[366788603,1750456232155,-160.0,0.0002088,2]
[366788605,1750456232164,-836.27303475,0.0002088,2]
[366788608,1750456232173,-230.06456406,0.0002088,2]
[366788610,1750456232186,-160.0,0.0002088,2]
[366788612,1750456232195,-424.85694595,0.0002088,2]
[366788614,1750456232205,-213.51557418,0.00021048,2]
[366788616,1750456232215,-515.4803149,0.00021085,2]
[366788618,1750456232226,-195.30065924,0.00021318,2]
[366788620,1750456232235,-500.0,0.00021318,2]
[366788621,1750456232245,-500.0,0.00021318,2]
[366788622,1750456232256,-238.51758113,0.00021318,2]
[366788623,1750456232266,-385.42941423,0.00021318,2]
[366788624,1750456232278,-114.57058577,0.00021318,2]
[366788625,1750456232288,-500.0,0.00021318,2]
[366788626,1750456232298,-500.0,0.00021318,2]
[366788627,1750456232308,-500.0,0.00021318,2]
[366788628,1750456232318,-500.0,0.00021318,2]
[366788629,1750456232328,-500.0,0.00021318,2]
[366788630,1750456232337,-500.0,0.00021318,2]
[366788631,1750456232347,-500.0,0.00021318,2]
[366788632,1750456232356,-500.0,0.00021318,2]
[366788633,1750456232366,-550.0,0.00021318,2]
[366788634,1750456232375,-500.0,0.00021318,2]
[366788635,1750456232385,-1688.0,0.00021319,2]
[366788636,1750456232395,-207.4,0.00021319,2]
[366788637,1750456232406,-500.0,0.00021319,2]
[366788638,1750456232416,-500.0,0.00021319,2]
[366788639,1750456232425,-500.0,0.00021319,2]
[366788640,1750456232435,-500.0,0.00021319,2]
[366788641,1750456232445,-500.0,0.00021319,2]
[366788642,1750456232455,-500.0,0.00021319,2]
[366788643,1750456232465,-5000.0,0.00021319,2]
[366788644,1750456232474,-500.0,0.00021319,2]
[366788645,1750456232483,-500.0,0.00021319,2]
[366788647,1750456232493,-500.0,0.00021319,2]
[366788648,1750456232503,-500.0,0.00021319,2]
[366788649,1750456232512,-500.0,0.00021319,2]
[366788651,1750456232522,-500.0,0.00021319,2]
[366788652,1750456232532,-500.0,0.00021319,2]
[366788654,1750456232542,-500.0,0.00021319,2]
[366788656,1750456232553,-500.0,0.00021319,2]
[366788658,1750456232562,-500.0,0.00021319,2]
[366788659,1750456232572,-500.0,0.00021319,2]
[366788661,1750456232582,-500.0,0.00021319,2]
[366788663,1750456232592,-500.0,0.00021319,2]
[366788664,1750456232602,-500.0,0.00021319,2]
[366788666,1750456232611,-500.0,0.00021319,2]
[366788668,1750456232621,-500.0,0.00021319,2]
[366788670,1750456232631,-500.0,0.00021319,2]
[366788672,1750456232641,-500.0,0.00021319,2]
[366788673,1750456232651,-500.0,0.00021319,2]
[366788675,1750456232661,-500.0,0.00021319,2]
[366788677,1750456232671,-500.0,0.00021319,2]
[366788679,1750456232681,-500.0,0.00021319,2]
[366788680,1750456232691,-500.0,0.00021319,2]
[366788682,1750456232700,-500.0,0.00021319,2]
[366788683,1750456232710,-25000.0,0.00021319,2]
[366788684,1750456232719,-168.0,0.00021336,2]
[366788685,1750456232728,-426.3,0.00021364,10]
[366788686,1750456232738,-1750.456,0.00021374,2]
[366788687,1750456232747,-1815.222872,0.00021429,2]
[366788688,1750456232757,-500.0,0.00021429,2]
[366788689,1750456232766,-1882.38611826,0.00021484,2]
[366788690,1750456232776,-800.99746663,0.00021539,2]
[366788691,1750456232786,-168.0,0.00021756,2]
[366788692,1750456232796,-502.45172187,0.00021757,2]
[366788693,1750456232806,-500.0,0.0002181,2]
[366788694,1750456232815,-500.0,0.0002181,2]
[366788695,1750456232824,-188.03215683,0.00021817,2]
[366788696,1750456232834,-5000.0,0.00021867,2]
[366788697,1750456232843,-25000.0,0.00021867,2]
[366788698,1750456232854,-223.55,0.00021894,10]
[366788699,1750456232863,-1078.82440416,0.000219,6]
[366788700,1750456232873,-287.55,0.000219,2]
[366788701,1750456232885,-151.0,0.00021904,2]
[366788702,1750456232894,-222.04152509,0.00021917,2]
[366788703,1750456232904,-527.56315762,0.00021917,2]
[366788704,1750456232914,-460.0,0.00021917,2]
[366788705,1750456232937,-569.89789178,0.00021917,2]
[366788706,1750456232947,-267.24681748,0.00021917,2]
[366788707,1750456232957,-460.0,0.00021917,2]
[366788708,1750456232967,-551.72979347,0.00021917,2]
[366788709,1750456232978,-387.6527554,0.00021917,2]
[366788710,1750456232988,-460.0,0.00021917,2]
[366788711,1750456232999,-520.0,0.00021917,2]
[366788712,1750456233009,-460.0,0.00021917,2]
[366788713,1750456233019,-460.0,0.00021917,2]
[366788714,1750456233029,-202.21395231,0.00021917,2]
[366788715,1750456233040,-399.31363842,0.00021917,2]
[366788716,1750456233051,-460.0,0.00021917,2]
[366788717,1750456233061,-460.0,0.00021917,2]
[366788718,1750456233072,-500.0,0.00021917,2]
[366788719,1750456233082,-500.0,0.00021917,2]
[366788720,1750456233093,-276.57429367,0.00021917,2]
[366788721,1750456233103,-389.52373053,0.00021917,2]
[366788722,1750456233113,-460.0,0.00021917,2]
[366788723,1750456233122,-443.50535071,0.00021917,2]
[366788724,1750456233133,-460.0,0.00021917,2]
[366788725,1750456233143,-460.0,0.00021917,2]
[366788726,1750456233154,-460.0,0.00021917,2]
[366788727,1750456233164,-460.0,0.00021917,2]
[366788728,1750456233175,-460.0,0.00021917,2]
[366788729,1750456233189,-460.0,0.00021917,2]
[366788730,1750456233200,-460.0,0.00021917,2]
[366788731,1750456233211,-330.0,0.00021917,2]
[366788732,1750456233221,-462.21091065,0.00021917,2]
[366788733,1750456233234,-499.5692201,0.00021917,2]
[366788734,1750456233246,-375.5526729,0.00021917,2]
[366788735,1750456233261,-443.12912758,0.00021917,2]
[366788736,1750456233278,-173.60125,0.00021917,2]
[366788737,1750456233289,-470.0,0.00021917,2]
[366788738,1750456233300,-460.0,0.00021917,2]
[366788739,1750456233311,-460.0,0.00021917,2]
[366788740,1750456233321,-460.0,0.00021917,2]
[366788741,1750456233331,-373.54989965,0.00021917,2]
[366788742,1750456233342,-460.0,0.00021917,2]
[366788743,1750456233352,-463.6632907,0.00021917,2]
[366788744,1750456233362,-504.08,0.00021917,2]
[366788745,1750456233373,-470.0,0.00021917,2]
[366788746,1750456233383,-440.0,0.00021917,2]
[366788747,1750456233393,-460.0,0.00021917,2]
[366788748,1750456233403,-500.0,0.00021917,2]
[366788749,1750456233413,-449.60674791,0.00021917,2]
[366788750,1750456233423,-151.0,0.00021931,2]
[366788751,1750456233433,-204.68101698,0.00021959,2]
[366788752,1750456233443,-1168.02,0.00022,7]
[366788753,1750456233453,-500.0,0.00022007,2]
[366788754,1750456233463,-1078.82440416,0.00022038,6]
[366788755,1750456233473,-1078.82440416,0.00022176,6]
[366788756,1750456233483,-179.79,0.00022181,3]
[366788757,1750456233493,-460.0,0.00022191,2]
[366788758,1750456233503,-460.0,0.00022191,2]
[366788759,1750456233514,-460.0,0.00022191,2]
[366788760,1750456233523,-467.39292669,0.00022191,2]
[366788761,1750456233533,-503.9,0.00022191,2]
[366788762,1750456233543,-390.0,0.00022191,2]
[366788763,1750456233553,-390.0,0.00022191,2]
[366788764,1750456233562,-539.42,0.00022224,3]
[366788765,1750456233573,-420.0,0.00022233,2]
[366788766,1750456233582,-1078.82440416,0.00022314,7]
[366788767,1750456233592,-188.03215681,0.00022338,2]
[366788768,1750456233602,-323.0,0.00022339,2]
[366788769,1750456233612,-504.99209339,0.00022358,2]